[Event "January 2 Early 2024"]
[Site "https://www.chess.com"]
[Date "2024.01.02"]
[Round "9"]
[White "Agibileg, Uurtsaikh"]
[Black "Postnikov, Daniil"]
[Result "0-1"]
[Board "57"]
[TimeControl "180+1"]
[WhiteFideId "4901606"]
[BlackFideId "4166329"]
[WhiteElo "2690"]
[BlackElo "2509"]
[WhiteTeam "MGL"]
[BlackTeam "RUS"]
[WhiteClock "0:00:00"]
[BlackClock "0:00:06"]

1. d4 {[%clk 0:03:00]}  Nf6 {[%clk 0:02:57]} 2. c4 {[%clk 0:02:59]}  c5 {[%clk 0:02:57]} 3. d5 {[%clk 0:02:59]}  b5 {[%clk 0:02:58]} 4. cxb5 {[%clk 0:02:55]}  a6 {[%clk 0:02:58]} 5. e3 {[%clk 0:02:49]}  g6 {[%clk 0:02:59]} 6. Nc3 {[%clk 0:02:46]}  Bg7 {[%clk 0:02:59]} 7. a4 {[%clk 0:02:47]}  O-O {[%clk 0:02:56]} 8. e4 {[%clk 0:02:47]}  e6 {[%clk 0:02:55]} 9. Bc4 {[%clk 0:02:38]}  Bb7 {[%clk 0:02:51]} 10. Nge2 {[%clk 0:02:36]}  Re8 {[%clk 0:02:47]} 11. O-O {[%clk 0:02:26]}  axb5 {[%clk 0:02:42]} 12. Bxb5 {[%clk 0:02:26]}  exd5 {[%clk 0:02:39]} 13. exd5 {[%clk 0:02:24]}  Na6 {[%clk 0:02:40]} 14. Bg5 {[%clk 0:02:12]}  Nb4 {[%clk 0:02:39]} 15. Bc4 {[%clk 0:02:09]}  Qa5 {[%clk 0:02:35]} 16. d6 {[%clk 0:01:56]}  Ba6 {[%clk 0:02:31]} 17. Nb5 {[%clk 0:01:54]}  Bxb5 {[%clk 0:02:21]} 18. axb5 {[%clk 0:01:48]}  Qxa1 {[%clk 0:02:12]} 19. Qxa1 {[%clk 0:01:49]}  Rxa1 {[%clk 0:02:13]} 20. Rxa1 {[%clk 0:01:50]}  Ne4 {[%clk 0:02:13]} 21. Bf4 {[%clk 0:01:40]}  g5 {[%clk 0:01:30]} 22. Bg3 {[%clk 0:01:28]}  Nxg3 {[%clk 0:01:29]} 23. hxg3 {[%clk 0:01:29]}  Bxb2 {[%clk 0:01:25]} 24. Ra7 {[%clk 0:01:29]}  Re4 {[%clk 0:01:14]} 25. Rxd7 {[%clk 0:01:00]}  Rxc4 {[%clk 0:01:13]} 26. Rd8+ {[%clk 0:01:00]}  Kg7 {[%clk 0:01:10]} 27. d7 {[%clk 0:00:57]}  Bf6 {[%clk 0:01:09]} 28. Re8 {[%clk 0:00:45]}  Nd5 {[%clk 0:01:09]} 29. g4 {[%clk 0:00:40]}  Nf4 {[%clk 0:00:55]} 30. Ng3 {[%clk 0:00:39]}  h6 {[%clk 0:00:34]} 31. b6 {[%clk 0:00:26]}  Rb4 {[%clk 0:00:31]} 32. Nf5+ {[%clk 0:00:24]}  Kh7 {[%clk 0:00:30]} 33. Rf8 {[%clk 0:00:24]}  Rb1+ {[%clk 0:00:21]} 34. Kh2 {[%clk 0:00:24]}  Ne6 {[%clk 0:00:21]} 35. Rxf7+ {[%clk 0:00:23]}  Kg6 {[%clk 0:00:22]} 36. Nxh6 {[%clk 0:00:16]}  Rxb6 {[%clk 0:00:18]} 37. f4 {[%clk 0:00:10]}  gxf4 {[%clk 0:00:13]} 38. g5 {[%clk 0:00:09]}  Bxg5 {[%clk 0:00:13]} 39. Rf5 {[%clk 0:00:03]}  Kxh6 {[%clk 0:00:09]} 40. Kh3 {[%clk 0:00:03]}  Kg6 {[%clk 0:00:09]} 41. Kg4 {[%clk 0:00:04]}  Rd6 {[%clk 0:00:09]} 42. Re5 {[%clk 0:00:03]}  Kf6 {[%clk 0:00:08]} 43. Rf5+ {[%clk 0:00:00]}  Ke7 {[%clk 0:00:06]} 0-1

[Event "January 2 Early 2024"]
[Site "https://www.chess.com"]
[Date "2024.01.02"]
[Round "9"]
[White "Domingo Nunez, Alejandro"]
[Black "Begunov, Konstantin"]
[Result "1-0"]
[Board "60"]
[TimeControl "180+1"]
[WhiteFideId "22245561"]
[BlackFideId "4118510"]
[WhiteElo "2670"]
[BlackElo "2446"]
[WhiteTeam "ESP"]
[BlackTeam "RUS"]
[WhiteClock "0:01:08"]
[BlackClock "0:00:21"]

1. Nf3 {[%clk 0:03:00]}  d5 {[%clk 0:02:59]} 2. g3 {[%clk 0:02:59]}  c6 {[%clk 0:03:00]} 3. Bg2 {[%clk 0:03:00]}  Bg4 {[%clk 0:03:01]} 4. h3 {[%clk 0:02:59]}  Bh5 {[%clk 0:03:00]} 5. O-O {[%clk 0:02:59]}  Nd7 {[%clk 0:03:00]} 6. c4 {[%clk 0:02:59]}  e6 {[%clk 0:03:00]} 7. cxd5 {[%clk 0:02:59]}  cxd5 {[%clk 0:02:58]} 8. d4 {[%clk 0:02:57]}  Ngf6 {[%clk 0:02:57]} 9. Ne5 {[%clk 0:02:39]}  Bd6 {[%clk 0:02:54]} 10. g4 {[%clk 0:02:38]}  Bg6 {[%clk 0:02:50]} 11. f4 {[%clk 0:02:38]}  Be4 {[%clk 0:02:44]} 12. Nc3 {[%clk 0:02:36]}  Bxg2 {[%clk 0:02:44]} 13. Kxg2 {[%clk 0:02:37]}  O-O {[%clk 0:02:42]} 14. Qd3 {[%clk 0:02:37]}  Rc8 {[%clk 0:02:33]} 15. Be3 {[%clk 0:02:33]}  Nb6 {[%clk 0:02:28]} 16. b3 {[%clk 0:02:32]}  Bb4 {[%clk 0:02:22]} 17. Rac1 {[%clk 0:02:29]}  Nfd7 {[%clk 0:02:20]} 18. Nf3 {[%clk 0:02:09]}  Qe7 {[%clk 0:02:16]} 19. Bf2 {[%clk 0:02:08]}  Nb8 {[%clk 0:02:08]} 20. Bh4 {[%clk 0:02:00]}  f6 {[%clk 0:01:50]} 21. g5 {[%clk 0:01:59]}  Nc6 {[%clk 0:01:46]} 22. Kh1 {[%clk 0:01:51]}  Ba3 {[%clk 0:01:45]} 23. Rcd1 {[%clk 0:01:38]}  Qc7 {[%clk 0:01:28]} 24. gxf6 {[%clk 0:01:28]}  Nb4 {[%clk 0:01:21]} 25. Qe3 {[%clk 0:01:25]}  Qxc3 {[%clk 0:01:08]} 26. Qxe6+ {[%clk 0:01:24]}  Rf7 {[%clk 0:00:55]} 27. Ne5 {[%clk 0:01:16]}  Rf8 {[%clk 0:00:39]} 28. fxg7 {[%clk 0:01:11]}  Kxg7 {[%clk 0:00:22]} 29. Rg1+ {[%clk 0:01:11]}  Kh8 {[%clk 0:00:22]} 30. Nxf7+ {[%clk 0:01:09]}  Rxf7 {[%clk 0:00:22]} 31. Qe8+ {[%clk 0:01:08]}  Rf8 {[%clk 0:00:21]} 32. Bf6# {[%clk 0:01:08]} 1-0

[Event "January 2 Early 2024"]
[Site "https://www.chess.com"]
[Date "2024.01.02"]
[Round "9"]
[White "Nazari, Arad"]
[Black "Ambartsumova, Karina"]
[Result "0-1"]
[Board "64"]
[TimeControl "180+1"]
[WhiteFideId "12577324"]
[BlackFideId "4166299"]
[WhiteElo "2708"]
[BlackElo "2596"]
[WhiteTeam "IRI"]
[BlackTeam "RUS"]
[WhiteClock "0:01:17"]
[BlackClock "0:00:58"]

1. e4 {[%clk 0:03:00]}  e5 {[%clk 0:02:59]} 2. f4 {[%clk 0:03:00]}  d5 {[%clk 0:02:59]} 3. exd5 {[%clk 0:03:00]}  e4 {[%clk 0:02:59]} 4. d3 {[%clk 0:03:01]}  Qxd5 {[%clk 0:02:58]} 5. Nc3 {[%clk 0:02:52]}  Bb4 {[%clk 0:02:58]} 6. Bd2 {[%clk 0:02:48]}  Bxc3 {[%clk 0:02:58]} 7. Bxc3 {[%clk 0:02:49]}  Nf6 {[%clk 0:02:58]} 8. Qe2 {[%clk 0:02:43]}  Bf5 {[%clk 0:02:51]} 9. Bxf6 {[%clk 0:02:35]}  gxf6 {[%clk 0:02:52]} 10. g4 {[%clk 0:02:34]}  Be6 {[%clk 0:02:39]} 11. dxe4 {[%clk 0:02:28]}  Qa5+ {[%clk 0:02:38]} 12. c3 {[%clk 0:02:29]}  Nc6 {[%clk 0:02:37]} 13. f5 {[%clk 0:02:22]}  Bd7 {[%clk 0:02:27]} 14. Qb5 {[%clk 0:02:23]}  Qxb5 {[%clk 0:02:21]} 15. Bxb5 {[%clk 0:02:23]}  Ne5 {[%clk 0:02:21]} 16. Bxd7+ {[%clk 0:02:21]}  Kxd7 {[%clk 0:02:22]} 17. h3 {[%clk 0:02:20]}  Nd3+ {[%clk 0:02:09]} 18. Ke2 {[%clk 0:02:21]}  Nxb2 {[%clk 0:02:10]} 19. Rb1 {[%clk 0:02:21]}  Na4 {[%clk 0:02:10]} 20. Rxb7 {[%clk 0:02:19]}  Rhb8 {[%clk 0:02:06]} 21. Rb3 {[%clk 0:02:15]}  Nc5 {[%clk 0:01:59]} 22. Rb4 {[%clk 0:02:10]}  Rxb4 {[%clk 0:01:50]} 23. cxb4 {[%clk 0:02:11]}  Nxe4 {[%clk 0:01:50]} 24. Ke3 {[%clk 0:01:52]}  Ng3 {[%clk 0:01:49]} 25. Kf2 {[%clk 0:01:42]}  Nxh1+ {[%clk 0:01:48]} 26. Kg2 {[%clk 0:01:42]}  Re8 {[%clk 0:01:38]} 27. Kxh1 {[%clk 0:01:37]}  Re1 {[%clk 0:01:36]} 28. h4 {[%clk 0:01:38]}  Ra1 {[%clk 0:01:33]} 29. Kg2 {[%clk 0:01:34]}  Rxa2+ {[%clk 0:01:33]} 30. Kg3 {[%clk 0:01:35]}  Rb2 {[%clk 0:01:32]} 31. Nf3 {[%clk 0:01:35]}  Rxb4 {[%clk 0:01:31]} 32. g5 {[%clk 0:01:35]}  Rb3 {[%clk 0:01:28]} 33. Kg4 {[%clk 0:01:27]}  Rxf3 {[%clk 0:01:25]} 34. Kxf3 {[%clk 0:01:27]}  a5 {[%clk 0:01:21]} 35. Kg4 {[%clk 0:01:23]}  fxg5 {[%clk 0:01:13]} 36. Kxg5 {[%clk 0:01:19]}  a4 {[%clk 0:01:12]} 37. Kf6 {[%clk 0:01:20]}  Ke8 {[%clk 0:01:08]} 38. Kg7 {[%clk 0:01:20]}  a3 {[%clk 0:01:08]} 39. h5 {[%clk 0:01:20]}  a2 {[%clk 0:01:09]} 40. h6 {[%clk 0:01:20]}  a1=Q+ {[%clk 0:01:08]} 41. f6 {[%clk 0:01:19]}  Qe5 {[%clk 0:00:59]} 42. Kg8 {[%clk 0:01:20]}  Qxf6 {[%clk 0:00:57]} 43. Kxh7 {[%clk 0:01:17]}  Qg6+ {[%clk 0:00:58]} 0-1

[Event "January 2 Early 2024"]
[Site "https://www.chess.com"]
[Date "2024.01.02"]
[Round "9"]
[White "Manolache, Marius"]
[Black "AmanteDeMoi"]
[Result "0-1"]
[Board "65"]
[TimeControl "180+1"]
[WhiteFideId "1201530"]
[WhiteElo "2686"]
[BlackElo "2575"]
[WhiteTeam "ROU"]
[WhiteClock "0:00:35"]
[BlackClock "0:00:16"]

1. d4 {[%clk 0:03:00]}  g6 {[%clk 0:02:55]} 2. e4 {[%clk 0:03:00]}  Bg7 {[%clk 0:02:56]} 3. Nc3 {[%clk 0:03:00]}  c6 {[%clk 0:02:56]} 4. Nf3 {[%clk 0:02:59]}  d5 {[%clk 0:02:56]} 5. h3 {[%clk 0:02:59]}  dxe4 {[%clk 0:02:56]} 6. Nxe4 {[%clk 0:02:59]}  Nd7 {[%clk 0:02:57]} 7. Bc4 {[%clk 0:02:58]}  Ngf6 {[%clk 0:02:57]} 8. Nxf6+ {[%clk 0:02:57]}  Nxf6 {[%clk 0:02:58]} 9. O-O {[%clk 0:02:57]}  O-O {[%clk 0:02:59]} 10. Re1 {[%clk 0:02:57]}  Qc7 {[%clk 0:02:59]} 11. Bg5 {[%clk 0:02:56]}  c5 {[%clk 0:03:00]} 12. c3 {[%clk 0:02:50]}  cxd4 {[%clk 0:02:59]} 13. Qxd4 {[%clk 0:02:49]}  e5 {[%clk 0:02:34]} 14. Qh4 {[%clk 0:02:46]}  e4 {[%clk 0:02:14]} 15. Bxf6 {[%clk 0:02:38]}  exf3 {[%clk 0:02:11]} 16. Bxg7 {[%clk 0:02:08]}  Kxg7 {[%clk 0:02:12]} 17. Re7 {[%clk 0:02:01]}  Qc5 {[%clk 0:02:00]} 18. b4 {[%clk 0:02:00]}  Qd6 {[%clk 0:02:00]} 19. Qd4+ {[%clk 0:01:55]}  Qxd4 {[%clk 0:01:59]} 20. cxd4 {[%clk 0:01:55]}  fxg2 {[%clk 0:01:56]} 21. Kxg2 {[%clk 0:01:54]}  Kf6 {[%clk 0:01:51]} 22. Rc7 {[%clk 0:01:53]}  Bf5 {[%clk 0:01:34]} 23. Bd5 {[%clk 0:01:37]}  Rad8 {[%clk 0:01:33]} 24. Bxb7 {[%clk 0:01:37]}  Rxd4 {[%clk 0:01:33]} 25. b5 {[%clk 0:01:34]}  Ra4 {[%clk 0:01:28]} 26. a3 {[%clk 0:01:29]}  Be6 {[%clk 0:01:22]} 27. Ba6 {[%clk 0:01:22]}  Rd8 {[%clk 0:01:21]} 28. Rxa7 {[%clk 0:01:19]}  Rd3 {[%clk 0:01:18]} 29. Re1 {[%clk 0:01:13]}  Rdxa3 {[%clk 0:01:13]} 30. Re3 {[%clk 0:01:06]}  Bd5+ {[%clk 0:01:05]} 31. Kg3 {[%clk 0:01:03]}  Ra1 {[%clk 0:01:03]} 32. f3 {[%clk 0:01:00]}  R4a2 {[%clk 0:01:01]} 33. Rd3 {[%clk 0:00:52]}  Rg1+ {[%clk 0:01:01]} 34. Kf4 {[%clk 0:00:52]}  Re2 {[%clk 0:00:32]} 35. h4 {[%clk 0:00:51]}  h6 {[%clk 0:00:24]} 36. Rxd5 {[%clk 0:00:48]}  g5+ {[%clk 0:00:24]} 37. hxg5+ {[%clk 0:00:49]}  hxg5+ {[%clk 0:00:25]} 38. Rxg5 {[%clk 0:00:48]}  Rxg5 {[%clk 0:00:26]} 39. Rxf7+ {[%clk 0:00:47]}  Kxf7 {[%clk 0:00:24]} 40. Kxg5 {[%clk 0:00:47]}  Re6 {[%clk 0:00:16]} 41. Bb7 {[%clk 0:00:42]}  Re5+ {[%clk 0:00:16]} 42. Kg4 {[%clk 0:00:40]}  Rxb5 {[%clk 0:00:16]} 43. f4 {[%clk 0:00:35]}  Rxb7 {[%clk 0:00:16]} 0-1

[Event "January 2 Early 2024"]
[Site "https://www.chess.com"]
[Date "2024.01.02"]
[Round "9"]
[White "Vallejo Diaz, Javier"]
[Black "Csonka, Balazs"]
[Result "1-0"]
[Board "66"]
[TimeControl "180+1"]
[WhiteFideId "2256398"]
[BlackFideId "742910"]
[WhiteElo "2551"]
[BlackElo "2669"]
[WhiteTeam "ESP"]
[BlackTeam "HUN"]
[WhiteClock "0:00:30"]
[BlackClock "0:00:00"]

1. e4 {[%clk 0:03:00]}  e6 {[%clk 0:03:00]} 2. d4 {[%clk 0:02:57]}  d5 {[%clk 0:02:59]} 3. Nd2 {[%clk 0:02:57]}  c5 {[%clk 0:02:53]} 4. exd5 {[%clk 0:02:57]}  Qxd5 {[%clk 0:02:53]} 5. Ngf3 {[%clk 0:02:53]}  cxd4 {[%clk 0:02:52]} 6. Bc4 {[%clk 0:02:53]}  Qd6 {[%clk 0:02:49]} 7. O-O {[%clk 0:02:54]}  Nf6 {[%clk 0:02:48]} 8. Nb3 {[%clk 0:02:54]}  Nc6 {[%clk 0:02:45]} 9. Nbxd4 {[%clk 0:02:53]}  Nxd4 {[%clk 0:02:46]} 10. Nxd4 {[%clk 0:02:54]}  a6 {[%clk 0:02:43]} 11. a4 {[%clk 0:02:52]}  Be7 {[%clk 0:02:40]} 12. c3 {[%clk 0:02:51]}  O-O {[%clk 0:02:37]} 13. Qe2 {[%clk 0:02:51]}  Qc7 {[%clk 0:02:27]} 14. Bg5 {[%clk 0:02:47]}  e5 {[%clk 0:02:01]} 15. Nf3 {[%clk 0:02:38]}  Bg4 {[%clk 0:01:57]} 16. Bd3 {[%clk 0:02:37]}  Rad8 {[%clk 0:01:37]} 17. Bxf6 {[%clk 0:02:24]}  gxf6 {[%clk 0:01:18]} 18. Rfd1 {[%clk 0:02:04]}  f5 {[%clk 0:01:05]} 19. h3 {[%clk 0:01:45]}  Bxf3 {[%clk 0:00:43]} 20. gxf3 {[%clk 0:01:43]}  Qd6 {[%clk 0:00:12]} 21. Bxf5 {[%clk 0:01:33]}  Qf6 {[%clk 0:00:12]} 22. Qe4 {[%clk 0:01:30]}  Kh8 {[%clk 0:00:12]} 23. Kh2 {[%clk 0:01:28]}  Bc5 {[%clk 0:00:12]} 24. Kg2 {[%clk 0:01:09]}  Qg5+ {[%clk 0:00:02]} 25. Kf1 {[%clk 0:01:09]}  Qf4 {[%clk 0:00:03]} 26. Qxf4 {[%clk 0:01:02]}  exf4 {[%clk 0:00:04]} 27. a5 {[%clk 0:01:01]}  b6 {[%clk 0:00:01]} 28. Bd3 {[%clk 0:00:53]}  bxa5 {[%clk 0:00:01]} 29. Rxa5 {[%clk 0:00:52]}  Bb6 {[%clk 0:00:01]} 30. Rxa6 {[%clk 0:00:52]}  Rd6 {[%clk 0:00:02]} 31. Be2 {[%clk 0:00:48]}  Rfd8 {[%clk 0:00:03]} 32. Rxb6 {[%clk 0:00:42]}  Rxd1+ {[%clk 0:00:02]} 33. Bxd1 {[%clk 0:00:42]}  Rxd1+ {[%clk 0:00:03]} 34. Kg2 {[%clk 0:00:40]}  Rb1 {[%clk 0:00:04]} 35. c4 {[%clk 0:00:40]}  Kg7 {[%clk 0:00:04]} 36. c5 {[%clk 0:00:40]}  Rc1 {[%clk 0:00:04]} 37. b4 {[%clk 0:00:40]}  h6 {[%clk 0:00:03]} 38. c6 {[%clk 0:00:40]}  Kg6 {[%clk 0:00:02]} 39. b5 {[%clk 0:00:40]}  Kg5 {[%clk 0:00:02]} 40. Rb7 {[%clk 0:00:38]}  Kh4 {[%clk 0:00:02]} 41. Rxf7 {[%clk 0:00:34]}  Rc4 {[%clk 0:00:02]} 42. c7 {[%clk 0:00:33]}  h5 {[%clk 0:00:03]} 43. b6 {[%clk 0:00:30]}  Rc5 {[%clk 0:00:02]} 44. Rxf4+ {[%clk 0:00:29]}  Kg5 {[%clk 0:00:00]} 45. Re4 {[%clk 0:00:30]} 1-0

[Event "January 2 Early 2024"]
[Site "https://www.chess.com"]
[Date "2024.01.02"]
[Round "9"]
[White "Weetik, Vjacheslav"]
[Black "Kilpatrick, Callum"]
[Result "1-0"]
[Board "67"]
[TimeControl "180+1"]
[WhiteFideId "4153472"]
[BlackFideId "414425"]
[WhiteElo "2666"]
[BlackElo "2551"]
[WhiteTeam "RUS"]
[BlackTeam "ENG"]
[WhiteClock "0:00:08"]
[BlackClock "0:00:02"]

1. d4 {[%clk 0:02:59]}  Nf6 {[%clk 0:02:42]} 2. c4 {[%clk 0:02:59]}  g6 {[%clk 0:02:41]} 3. g3 {[%clk 0:03:00]}  Bg7 {[%clk 0:02:41]} 4. Bg2 {[%clk 0:03:00]}  O-O {[%clk 0:02:42]} 5. Nc3 {[%clk 0:03:00]}  d6 {[%clk 0:02:42]} 6. Nf3 {[%clk 0:03:00]}  Nc6 {[%clk 0:02:43]} 7. O-O {[%clk 0:03:00]}  e5 {[%clk 0:02:43]} 8. d5 {[%clk 0:03:00]}  Na5 {[%clk 0:02:43]} 9. b3 {[%clk 0:02:50]}  c5 {[%clk 0:02:19]} 10. dxc6 {[%clk 0:02:45]}  bxc6 {[%clk 0:02:12]} 11. Ba3 {[%clk 0:02:41]}  Nb7 {[%clk 0:02:11]} 12. Ng5 {[%clk 0:02:34]}  Qc7 {[%clk 0:02:06]} 13. Qc2 {[%clk 0:02:24]}  Bf5 {[%clk 0:02:02]} 14. e4 {[%clk 0:02:22]}  Bc8 {[%clk 0:01:53]} 15. f4 {[%clk 0:02:09]}  exf4 {[%clk 0:01:51]} 16. gxf4 {[%clk 0:02:09]}  Nc5 {[%clk 0:01:41]} 17. e5 {[%clk 0:02:04]}  Bf5 {[%clk 0:01:41]} 18. Qd2 {[%clk 0:01:24]}  Qb6 {[%clk 0:01:41]} 19. exf6 {[%clk 0:01:02]}  Ne4+ {[%clk 0:01:19]} 20. c5 {[%clk 0:01:02]}  Nxd2 {[%clk 0:01:15]} 21. cxb6 {[%clk 0:00:39]}  Bxf6 {[%clk 0:01:15]} 22. Rfc1 {[%clk 0:00:26]}  axb6 {[%clk 0:01:13]} 23. Bxd6 {[%clk 0:00:23]}  Nxb3 {[%clk 0:00:35]} 24. axb3 {[%clk 0:00:22]}  Rxa1 {[%clk 0:00:34]} 25. Rxa1 {[%clk 0:00:22]}  Bxc3 {[%clk 0:00:34]} 26. Bxf8 {[%clk 0:00:16]}  Bxa1 {[%clk 0:00:33]} 27. Bd6 {[%clk 0:00:16]}  Bd4+ {[%clk 0:00:30]} 28. Kf1 {[%clk 0:00:14]}  Bc2 {[%clk 0:00:28]} 29. b4 {[%clk 0:00:12]}  c5 {[%clk 0:00:27]} 30. bxc5 {[%clk 0:00:10]}  bxc5 {[%clk 0:00:27]} 31. Bd5 {[%clk 0:00:10]}  h6 {[%clk 0:00:23]} 32. Nxf7 {[%clk 0:00:10]}  Kg7 {[%clk 0:00:23]} 33. Be5+ {[%clk 0:00:09]}  Bxe5 {[%clk 0:00:22]} 34. fxe5 {[%clk 0:00:06]}  Bd3+ {[%clk 0:00:16]} 35. Kf2 {[%clk 0:00:06]}  c4 {[%clk 0:00:16]} 36. Nd6 {[%clk 0:00:07]}  c3 {[%clk 0:00:16]} 37. Ke3 {[%clk 0:00:08]}  c2 {[%clk 0:00:16]} 38. Kd2 {[%clk 0:00:08]}  Bf5 {[%clk 0:00:12]} 39. Bb3 {[%clk 0:00:08]}  Bg4 {[%clk 0:00:06]} 40. Kxc2 {[%clk 0:00:05]}  g5 {[%clk 0:00:06]} 41. Kd2 {[%clk 0:00:05]}  Kg6 {[%clk 0:00:07]} 42. Ke3 {[%clk 0:00:05]}  h5 {[%clk 0:00:07]} 43. Bc2+ {[%clk 0:00:06]}  Kh6 {[%clk 0:00:07]} 44. Bf5 {[%clk 0:00:06]}  Bd1 {[%clk 0:00:06]} 45. e6 {[%clk 0:00:07]}  g4 {[%clk 0:00:06]} 46. e7 {[%clk 0:00:07]}  Ba4 {[%clk 0:00:06]} 47. Kf4 {[%clk 0:00:06]}  Kg7 {[%clk 0:00:04]} 48. Kg5 {[%clk 0:00:06]}  Bc6 {[%clk 0:00:02]} 49. e8=Q {[%clk 0:00:06]}  Bxe8 {[%clk 0:00:02]} 50. Nxe8+ {[%clk 0:00:07]}  Kf7 {[%clk 0:00:02]} 51. Nf6 {[%clk 0:00:08]}  g3 {[%clk 0:00:02]} 52. hxg3 {[%clk 0:00:08]}  h4 {[%clk 0:00:02]} 53. gxh4 {[%clk 0:00:08]} 1-0

[Event "January 2 Early 2024"]
[Site "https://www.chess.com"]
[Date "2024.01.02"]
[Round "9"]
[White "Ismayil, Malak"]
[Black "Hansen, Sune Berg"]
[Result "0-1"]
[Board "68"]
[TimeControl "180+1"]
[WhiteFideId "13412604"]
[BlackFideId "1400266"]
[WhiteElo "2547"]
[BlackElo "2662"]
[WhiteTeam "AZE"]
[BlackTeam "DEN"]
[WhiteClock "0:00:01"]
[BlackClock "0:00:10"]

1. e4 {[%clk 0:03:00]}  e5 {[%clk 0:02:56]} 2. Nf3 {[%clk 0:03:00]}  Nc6 {[%clk 0:02:56]} 3. Bc4 {[%clk 0:03:00]}  Nf6 {[%clk 0:02:55]} 4. d3 {[%clk 0:02:59]}  Bc5 {[%clk 0:02:53]} 5. Nc3 {[%clk 0:02:59]}  a6 {[%clk 0:02:52]} 6. O-O {[%clk 0:02:59]}  d6 {[%clk 0:02:49]} 7. h3 {[%clk 0:02:59]}  Be6 {[%clk 0:02:47]} 8. Bb3 {[%clk 0:02:58]}  Nd4 {[%clk 0:02:44]} 9. Be3 {[%clk 0:02:56]}  Nxb3 {[%clk 0:02:37]} 10. axb3 {[%clk 0:02:57]}  Bxe3 {[%clk 0:02:34]} 11. fxe3 {[%clk 0:02:58]}  c6 {[%clk 0:02:27]} 12. d4 {[%clk 0:02:57]}  Qe7 {[%clk 0:02:18]} 13. Qe1 {[%clk 0:02:43]}  O-O {[%clk 0:02:06]} 14. dxe5 {[%clk 0:02:29]}  dxe5 {[%clk 0:02:03]} 15. Qg3 {[%clk 0:02:29]}  Nd7 {[%clk 0:01:39]} 16. Rad1 {[%clk 0:02:11]}  f6 {[%clk 0:01:37]} 17. Nh4 {[%clk 0:02:10]}  Rad8 {[%clk 0:01:36]} 18. Rf5 {[%clk 0:01:50]}  Nc5 {[%clk 0:01:21]} 19. Rff1 {[%clk 0:01:34]}  a5 {[%clk 0:01:19]} 20. Nf5 {[%clk 0:01:15]}  Bxf5 {[%clk 0:01:17]} 21. exf5 {[%clk 0:01:16]}  Rd7 {[%clk 0:01:00]} 22. h4 {[%clk 0:00:58]}  Rfd8 {[%clk 0:00:58]} 23. Qf3 {[%clk 0:00:57]}  Rd2 {[%clk 0:00:53]} 24. Rxd2 {[%clk 0:00:55]}  Rxd2 {[%clk 0:00:52]} 25. Rf2 {[%clk 0:00:56]}  Qd7 {[%clk 0:00:46]} 26. Kh2 {[%clk 0:00:39]}  Qd6 {[%clk 0:00:41]} 27. g3 {[%clk 0:00:24]}  b5 {[%clk 0:00:34]} 28. Qg2 {[%clk 0:00:16]}  Rxf2 {[%clk 0:00:33]} 29. Qxf2 {[%clk 0:00:17]}  b4 {[%clk 0:00:32]} 30. Na4 {[%clk 0:00:17]}  Ne4 {[%clk 0:00:32]} 31. Qe2 {[%clk 0:00:16]}  Kf8 {[%clk 0:00:28]} 32. c3 {[%clk 0:00:10]}  Qd5 {[%clk 0:00:22]} 33. cxb4 {[%clk 0:00:05]}  axb4 {[%clk 0:00:19]} 34. Qc2 {[%clk 0:00:05]}  Nd6 {[%clk 0:00:18]} 35. Nb6 {[%clk 0:00:04]}  Qf3 {[%clk 0:00:15]} 36. Nd7+ {[%clk 0:00:04]}  Ke7 {[%clk 0:00:15]} 37. Nc5 {[%clk 0:00:04]}  Nxf5 {[%clk 0:00:15]} 38. Ne4 {[%clk 0:00:03]}  Kf7 {[%clk 0:00:11]} 39. Qxc6 {[%clk 0:00:02]}  Qe2+ {[%clk 0:00:10]} 40. Kh3 {[%clk 0:00:01]}  Kg6 {[%clk 0:00:10]} 41. h5+ {[%clk 0:00:01]}  Qxh5+ {[%clk 0:00:09]} 42. Kg2 {[%clk 0:00:01]}  Qe2+ {[%clk 0:00:10]} 43. Kh3 {[%clk 0:00:01]}  Nxe3 {[%clk 0:00:10]} 44. Nd6 {[%clk 0:00:01]}  Qh5# {[%clk 0:00:10]} 0-1

[Event "January 2 Early 2024"]
[Site "https://www.chess.com"]
[Date "2024.01.02"]
[Round "9"]
[White "Przybylski, Wojciech"]
[Black "Injac, Teodora"]
[Result "0-1"]
[Board "70"]
[TimeControl "180+1"]
[WhiteFideId "1117599"]
[BlackFideId "932400"]
[WhiteElo "2534"]
[BlackElo "2658"]
[WhiteTeam "POL"]
[BlackTeam "SRB"]
[WhiteClock "0:00:00"]
[BlackClock "0:00:14"]

1. e4 {[%clk 0:03:00]}  e5 {[%clk 0:02:59]} 2. Nf3 {[%clk 0:03:00]}  Nc6 {[%clk 0:03:00]} 3. Bb5 {[%clk 0:02:58]}  a6 {[%clk 0:03:00]} 4. Ba4 {[%clk 0:02:58]}  d6 {[%clk 0:03:01]} 5. h3 {[%clk 0:02:58]}  Nf6 {[%clk 0:03:01]} 6. d3 {[%clk 0:02:58]}  g6 {[%clk 0:03:00]} 7. O-O {[%clk 0:02:57]}  Bg7 {[%clk 0:03:00]} 8. c4 {[%clk 0:02:57]}  O-O {[%clk 0:03:00]} 9. Nc3 {[%clk 0:02:57]}  h6 {[%clk 0:02:57]} 10. Be3 {[%clk 0:02:57]}  Bd7 {[%clk 0:02:51]} 11. Qd2 {[%clk 0:02:55]}  Kh7 {[%clk 0:02:51]} 12. Kh1 {[%clk 0:02:53]}  Nh5 {[%clk 0:02:39]} 13. Bc2 {[%clk 0:02:32]}  f5 {[%clk 0:02:11]} 14. exf5 {[%clk 0:02:29]}  gxf5 {[%clk 0:02:11]} 15. Qd1 {[%clk 0:02:09]}  f4 {[%clk 0:02:04]} 16. Bd2 {[%clk 0:02:08]}  Kh8 {[%clk 0:01:08]} 17. Ne4 {[%clk 0:02:02]}  Nf6 {[%clk 0:01:04]} 18. Rb1 {[%clk 0:01:53]}  Nxe4 {[%clk 0:01:04]} 19. dxe4 {[%clk 0:01:53]}  Bf6 {[%clk 0:01:00]} 20. b4 {[%clk 0:01:48]}  Rg8 {[%clk 0:01:01]} 21. Rg1 {[%clk 0:01:46]}  Qe8 {[%clk 0:00:57]} 22. Bd3 {[%clk 0:01:44]}  Be6 {[%clk 0:00:50]} 23. a4 {[%clk 0:01:38]}  Qd7 {[%clk 0:00:49]} 24. Bf1 {[%clk 0:01:35]}  Ne7 {[%clk 0:00:45]} 25. Bc3 {[%clk 0:01:25]}  Rg7 {[%clk 0:00:42]} 26. c5 {[%clk 0:01:21]}  Rag8 {[%clk 0:00:39]} 27. b5 {[%clk 0:01:14]}  axb5 {[%clk 0:00:36]} 28. cxd6 {[%clk 0:01:11]}  cxd6 {[%clk 0:00:33]} 29. Rxb5 {[%clk 0:01:02]}  Ng6 {[%clk 0:00:28]} 30. Bb4 {[%clk 0:00:50]}  Nh4 {[%clk 0:00:24]} 31. Nxh4 {[%clk 0:00:47]}  Bxh4 {[%clk 0:00:24]} 32. Qxd6 {[%clk 0:00:46]}  Bxf2 {[%clk 0:00:17]} 33. Qxe5 {[%clk 0:00:34]}  f3 {[%clk 0:00:17]} 34. Bc3 {[%clk 0:00:24]}  Bxg1 {[%clk 0:00:15]} 35. Kxg1 {[%clk 0:00:21]}  Kh7 {[%clk 0:00:16]} 36. Kh1 {[%clk 0:00:02]}  fxg2+ {[%clk 0:00:15]} 37. Bxg2 {[%clk 0:00:00]}  Qd1+ {[%clk 0:00:14]} 0-1